bitfinex/quotes_SOLUSD_20260310
["timestamp","ask_amount","ask_price","bid_price","bid_amount"]
[1773107937931,0.69968738,85.899,85.864,0.69844552]
[1773107939026,0.69968738,85.899,85.866,0.69844552]
[1773107939344,0.69968738,85.897,85.866,0.69844552]
[1773107939547,0.69968738,85.879,85.852,0.69844552]
[1773107940643,0.69968738,85.889,85.854,0.69844552]
[1773107940825,0.69968738,85.888,85.854,0.69844552]
[1773107941638,4.16501632,85.88,85.854,0.69844552]
[1773107942232,0.69968738,85.879,85.854,0.69844552]
[1773107942427,0.69968738,85.879,85.852,11.64790333]
[1773107942845,0.69968738,85.879,85.852,0.69844552]
[1773107943528,4.16501632,85.87,85.845,0.660554]
[1773107943729,0.64448847,85.869,85.845,0.660554]
[1773107943931,0.64448847,85.869,85.841,11.6494449]
[1773107944245,0.64448847,85.877,85.842,0.660554]
[1773107949050,0.64448847,85.877,85.841,40.77305715]
[1773107949051,0.64448847,85.875,85.844,0.660554]
[1773107949251,4.16501632,85.87,85.844,0.660554]
[1773107949457,0.64448847,85.869,85.843,11.64917349]
[1773107949840,0.64448847,85.869,85.843,12.30972749]
[1773107950156,0.64448847,85.869,85.844,0.660554]
[1773107951151,0.64448847,85.869,85.845,11.64890209]
[1773107951345,0.64448847,85.869,85.846,0.660554]
[1773107954141,0.64448847,85.869,85.848,0.660554]
[1773107954765,4.16501632,85.87,85.848,0.660554]
[1773107955843,4.80950479,85.87,85.848,0.660554]
[1773107956375,0.64448847,85.868,85.842,0.660554]
[1773107957647,0.64448847,85.868,85.83,4.16501632]
[1773107957852,0.64448847,85.849,85.817,0.660554]
[1773107958253,0.64448847,85.847,85.821,11.65215972]
[1773107958461,0.64448847,85.847,85.817,12.31321612]
[1773107959065,0.64448847,85.847,85.818,0.660554]
[1773107959446,0.64448847,85.852,85.821,0.660554]
[1773107960259,11.64783062,85.853,85.821,0.660554]
[1773107960260,0.64448847,85.849,85.821,0.660554]
[1773107960463,0.64448847,85.849,85.823,0.660554]
[1773107961979,0.64448847,85.849,85.825,0.660554]
[1773107963457,29.11756701,85.859,85.819,11.65232324]
[1773107963458,0.64448847,85.839,85.819,11.65232324]
[1773107964062,0.64448847,85.837,85.814,0.660554]
[1773107964380,0.64448847,85.829,85.81,0.2]
[1773107965973,0.64448847,85.827,85.81,0.2]
[1773107966477,0.64448847,85.827,85.799,11.65507052]
[1773107966862,4.16501632,85.84,85.811,0.660554]
[1773107967064,0.64448847,85.839,85.811,0.660554]
[1773107967263,11.64917349,85.843,85.799,40.79293925]
[1773107967264,0.64448847,85.829,85.801,0.660554]
[1773107968179,0.64448847,85.829,85.803,0.660554]
[1773107968479,0.64448847,85.827,85.798,11.65523314]
[1773107968864,0.64448847,85.827,85.799,0.660554]
[1773107970579,0.64448847,85.825,85.799,0.660554]
[1773107970769,0.64448847,85.819,85.793,0.660554]
[1773107972574,0.64448847,85.819,85.787,0.660554]
[1773107972759,0.64448847,85.817,85.788,11.65664195]
[1773107973270,0.64448847,85.817,85.789,0.660554]
[1773107973871,0.66170143,85.842,85.791,0.64677406]
[1773107974077,0.66170143,85.838,85.801,0.64677406]
[1773107974671,0.66170143,85.836,85.803,0.64677406]
[1773107976679,0.66170143,85.834,85.805,0.64677406]
[1773107977578,11.65053068,85.833,85.806,11.65419667]
[1773107977775,12.31223211,85.833,85.807,0.64677406]
[1773107978563,11.65053068,85.833,85.807,0.64677406]
[1773107978766,0.66170143,85.832,85.807,0.64677406]
[1773107979584,4.17287187,85.84,85.809,0.64677406]
[1773107979585,0.66170143,85.838,85.809,0.64677406]
[1773107980072,0.66170143,85.838,85.811,0.64677406]
[1773107981684,11.64998776,85.837,85.813,0.64677406]
[1773107982299,4.17287187,85.83,85.813,0.64677406]
[1773107982669,4.17287187,85.83,85.812,11.65338181]
[1773107982670,0.66170143,85.829,85.812,11.65338181]
[1773107983790,0.66170143,85.829,85.811,0.64677406]
[1773107983975,4.8345733,85.82,85.802,0.64677406]
[1773107984683,0.66170143,85.819,85.797,11.65539408]
[1773107984888,0.66170143,85.819,85.796,0.64677406]
[1773107985185,0.66170143,85.819,85.796,12.30220119]
[1773107985380,0.66170143,85.819,85.797,0.64677406]
[1773107986564,0.66170143,85.819,85.798,11.65528333]
[1773107986771,0.66170143,85.839,85.811,0.64677406]
[1773107988687,0.66170143,85.827,85.795,0.64677406]
[1773107988887,4.17287187,85.82,85.795,0.64677406]
[1773107989070,0.66143418,85.821,85.795,0.64677406]
[1773107989271,4.17287187,85.83,85.801,0.64236355]
[1773107989577,0.66143418,85.837,85.801,0.64236355]
[1773107989778,4.17287187,85.83,85.801,0.64236355]
[1773107989987,0.66143418,85.835,85.801,0.64236355]
[1773107990170,4.17287187,85.84,85.791,40.79682017]
[1773107990171,0.66143418,85.842,85.811,0.64236355]
[1773107990572,4.17287187,85.84,85.811,0.64236355]
[1773107990788,4.17287187,85.84,85.812,11.65338181]
[1773107990789,0.66143418,85.839,85.812,11.65338181]
[1773107990993,0.66143418,85.838,85.812,11.65338181]
[1773107991290,0.66143418,85.838,85.812,12.29574536]
[1773107991496,0.66143418,85.838,85.813,0.64236355]
[1773107991681,4.17287187,85.83,85.807,0.64236355]
[1773107992074,0.66143418,85.831,85.807,0.64236355]
[1773107992400,0.66143418,85.838,85.807,0.64236355]
[1773107994388,3.69383402,85.863,85.807,0.64236355]
[1773107994389,0.66143418,85.829,85.808,11.65392504]
[1773107994589,0.66143418,85.829,85.809,0.64236355]
[1773107994799,0.66143418,85.835,85.809,0.64236355]
[1773107995297,0.66143418,85.835,85.792,62.8]
[1773107995298,0.66143418,85.834,85.732,70.47014104]
[1773107995590,0.66143418,85.836,85.771,0.64236355]
[1773107995770,4.17287187,85.82,85.791,0.64236355]
[1773107996181,4.17287187,85.83,85.791,0.64236355]
[1773107996378,4.17287187,85.88,85.763,3.69383402]
[1773107996379,0.66143418,85.808,85.765,0.64236355]
[1773107996578,4.17287187,85.82,85.781,0.64236355]
[1773107996793,0.66143418,85.819,85.781,0.64236355]
[1773107997288,0.66143418,85.827,85.791,0.64236355]
[1773107997490,0.66143418,85.827,85.771,29.14706951]
[1773107997789,40.77400714,85.839,85.754,0.64236355]
[1773107997790,0.66143418,85.804,85.754,0.64236355]
[1773107997991,0.66143418,85.804,85.761,0.64236355]
[1773107998288,4.17287187,85.8,85.761,0.64236355]
[1773107998595,4.17287187,85.8,85.751,29.15417896]
[1773107998596,4.17287187,85.79,85.763,0.64236355]
[1773107999390,4.17287187,85.78,85.757,0.64236355]
[1773108000291,15.82801624,85.8,85.75,0.2]
[1773108000292,0.66143418,85.769,85.75,0.2]
[1773108000492,11.65936013,85.768,85.751,0.64236355]
[1773108000795,11.65555503,85.796,85.751,0.64236355]
[1773108000988,11.65555503,85.796,85.761,0.64236355]
[1773108001195,4.17287187,85.84,85.79,4.17287187]
[1773108001196,4.17287187,85.82,85.79,4.17287187]
[1773108001396,0.66143418,85.838,85.801,0.64236355]
[1773108001705,0.66143418,85.845,85.811,0.64236355]
[1773108001923,4.17287187,85.85,85.82,4.17287187]
[1773108002209,0.66143418,85.856,85.831,0.64236355]
[1773108002381,11.64742398,85.856,85.831,0.64236355]
[1773108002578,0.66143418,85.855,85.831,0.64236355]
[1773108003181,4.17287187,85.86,85.833,0.64236355]
[1773108003385,11.64700264,85.859,85.833,0.64236355]
[1773108004293,0.65363619,85.896,85.833,0.64236355]
[1773108004591,11.64293448,85.889,85.861,0.6769038]
[1773108005186,0.65363619,85.888,85.861,0.6769038]
[1773108005385,4.17287187,85.88,85.861,0.6769038]
[1773108005609,11.64214837,85.895,85.861,0.6769038]
[1773108005798,0.65363619,85.894,85.861,0.6769038]
[1773108005989,4.82650806,85.89,85.861,0.6769038]
[1773108006542,0.65363619,85.887,85.831,0.6769038]
[1773108006814,0.65363619,85.887,85.807,4.82477569]
[1773108006815,4.17287187,85.85,85.811,0.6769038]
[1773108006980,4.17287187,85.84,85.811,0.6769038]
[1773108007185,4.17287187,85.83,85.811,0.6769038]
[1773108007603,11.17514667,85.84,85.811,0.6769038]
[1773108008492,22.82484143,85.84,85.811,0.6769038]
[1773108008691,0.65363619,85.839,85.811,0.6769038]
[1773108008993,11.17514667,85.83,85.802,0.6769038]
[1773108009395,11.17514667,85.83,85.804,0.6769038]
[1773108009788,12.3010458,85.856,85.811,0.6769038]
[1773108010013,11.17514667,85.85,85.811,0.6769038]
[1773108010311,11.17514667,85.84,85.811,0.6769038]
[1773108010501,4.82477569,85.908,85.777,8.51860971]
[1773108010502,11.17514667,85.83,85.802,0.6769038]
[1773108010706,11.17514667,85.83,85.81,0.5]
[1773108010906,11.17514667,85.83,85.802,0.6769038]
[1773108010907,0.65363619,85.829,85.802,0.6769038]
[1773108011218,0.65363619,85.829,85.794,0.6769038]
[1773108011219,11.17514667,85.82,85.794,0.6769038]
[1773108011910,0.65363619,85.829,85.794,0.6769038]
[1773108012496,11.17514667,85.82,85.794,0.6769038]
[1773108013515,11.17514667,85.83,85.801,0.6769038]
[1773108013818,0.65363619,85.829,85.801,0.6769038]
[1773108014410,11.17514667,85.82,85.791,0.6769038]
[1773108014621,11.65243127,85.819,85.791,0.6769038]
[1773108014917,0.65363619,85.818,85.791,0.6769038]
[1773108015419,11.17514667,85.81,85.783,0.6769038]
[1773108015710,0.65363619,85.789,85.759,0.6769038]
[1773108015913,11.17514667,85.78,85.759,0.6769038]
[1773108016308,11.17514667,85.78,85.751,0.6769038]
[1773108016616,3.69383402,85.814,85.751,0.6769038]
[1773108016617,11.17514667,85.77,85.751,0.6769038]
[1773108016916,0.65363619,85.778,85.75,0.2]
[1773108017415,11.17514667,85.79,85.752,0.6769038]
[1773108017822,0.65363619,85.815,85.78,11.17514667]
[1773108018113,0.65363619,85.815,85.781,0.6769038]
[1773108019093,11.65311021,85.814,85.783,0.6769038]
[1773108019318,12.3067464,85.814,85.783,0.6769038]
[1773108019895,0.65363619,85.809,85.775,0.6769038]
[1773108021618,11.65378922,85.809,85.777,0.6769038]
[1773108021988,11.65320112,85.814,85.781,0.6769038]
[1773108022194,11.65149417,85.826,85.791,0.6769038]
[1773108022813,0.65363619,85.819,85.791,0.6769038]
[1773108023618,11.65149417,85.826,85.793,0.6769038]
[1773108023815,11.17514667,85.82,85.793,0.6769038]
[1773108024209,0.65363619,85.825,85.793,0.6769038]
[1773108024410,11.17514667,85.82,85.793,0.6769038]
[1773108025206,0.65363619,85.825,85.793,0.6769038]
[1773108025626,11.65149417,85.826,85.801,0.6769038]
[1773108026131,0.65363619,85.825,85.79,0.6769038]
[1773108026300,11.17514667,85.8,85.77,11.17514667]
[1773108027428,0.65363619,85.808,85.771,11.65895232]
[1773108027596,11.17514667,85.8,85.771,11.65895232]
[1773108027795,11.17514667,85.8,85.747,3.69383402]
[1773108027796,0.65363619,85.799,85.76,11.17514667]
[1773108028023,0.65363619,85.808,85.77,11.17514667]
[1773108028206,0.65363619,85.808,85.771,0.6769038]
[1773108028606,40.78826229,85.809,85.771,0.6769038]
[1773108028607,11.82878286,85.8,85.771,0.6769038]
[1773108030612,11.65514749,85.799,85.772,11.65881639]
[1773108030924,11.65514749,85.799,85.773,0.6769038]
[1773108031528,58.25536823,85.829,85.772,11.65881639]
[1773108031529,0.65363619,85.829,85.791,0.6769038]
[1773108032020,11.17514667,85.82,85.791,0.6769038]
[1773108032336,0.65363619,85.819,85.791,0.6769038]
[1773108033222,0.65363619,85.819,85.793,0.6769038]
[1773108033802,11.65256706,85.818,85.793,0.6769038]
[1773108035202,0.65363619,85.819,85.795,0.63078721]
[1773108035405,0.66168972,85.826,85.795,0.63078721]
[1773108035607,58.24247507,85.848,85.794,11.65582674]
[1773108035608,11.17514667,85.85,85.811,0.63078721]
[1773108035808,0.66168972,85.849,85.811,0.63078721]
[1773108037017,0.66168972,85.839,85.801,0.63078721]
[1773108037218,0.66168972,85.818,85.794,12.28661395]
[1773108037427,0.66168972,85.818,85.794,11.65582674]
[1773108037630,11.65188314,85.824,85.795,0.63078721]
[1773108039839,11.65188314,85.824,85.797,0.63078721]
[1773108040138,11.65188314,85.824,85.792,0.63078721]
[1773108040518,11.17986715,85.83,85.792,0.63078721]
[1773108040724,11.65061781,85.833,85.801,0.63078721]
[1773108041135,0.66168972,85.848,85.81,11.17986715]
[1773108041347,11.17986715,85.84,85.791,40.79682017]
[1773108041517,40.76925764,85.849,85.778,62.8]
[1773108041518,11.17986715,85.81,85.778,0.63078721]
[1773108041720,11.17986715,85.82,85.781,0.63078721]
[1773108041931,11.84155687,85.83,85.801,0.63078721]
[1773108042133,0.66168972,85.819,85.78,11.17986715]
[1773108042371,0.66168972,85.829,85.79,11.17986715]
[1773108042540,0.66168972,85.829,85.791,0.63078721]
[1773108042747,0.66168972,85.819,85.791,0.63078721]
[1773108042944,0.66168972,85.829,85.791,0.63078721]
[1773108046452,0.66168972,85.827,85.793,0.63078721]
[1773108046826,11.65120939,85.828,85.793,0.63078721]
[1773108047044,3.69383402,85.846,85.792,11.65609847]
[1773108047045,0.66168972,85.865,85.811,0.63078721]
[1773108047358,0.66168972,85.849,85.811,0.63078721]
[1773108047551,0.66168972,85.839,85.811,0.63078721]
[1773108049227,0.66168972,85.839,85.777,8.51860971]
[1773108049228,0.66168972,85.819,85.751,0.63078721]
[1773108049443,0.66168972,85.791,85.752,0.63078721]
[1773108049647,11.17986715,85.78,85.752,0.63078721]
[1773108050154,0.6511025,85.779,85.746,11.66234907]
[1773108050355,11.17986715,85.77,85.746,11.66234907]
[1773108050535,11.83096965,85.76,85.732,0.66882516]
[1773108050731,11.83096965,85.76,85.738,11.66339846]
[1773108051053,11.83096965,85.76,85.733,11.66400599]
[1773108051429,11.83096965,85.76,85.737,11.66357121]
[1773108052439,0.6511025,85.758,85.73,0.2]
[1773108052636,11.17986715,85.75,85.73,0.2]
[1773108052851,11.66058372,85.759,85.731,0.66882516]
[1773108053031,11.17986715,85.76,85.731,0.66882516]
[1773108053457,22.84031896,85.76,85.731,0.66882516]
[1773108054449,11.17986715,85.76,85.731,0.66882516]
[1773108054760,11.17986715,85.76,85.733,0.66882516]
[1773108057443,11.17986715,85.76,85.735,0.66882516]
[1773108060251,11.17986715,85.76,85.737,0.66882516]
[1773108061667,11.17986715,85.76,85.739,0.66882516]
[1773108063544,4.18036977,85.76,85.74,11.66316771]
[1773108063742,0.66241304,85.814,85.741,0.66485641]
[1773108063943,0.66241304,85.799,85.761,0.66485641]
[1773108064169,0.66241304,85.789,85.761,0.66485641]
[1773108065756,0.66241304,85.789,85.763,0.66485641]
[1773108065757,12.31895399,85.789,85.763,0.66485641]
[1773108067374,11.18978332,85.79,85.751,29.15390099]
[1773108067375,11.18978332,85.79,85.765,0.66485641]
[1773108067675,11.65578372,85.795,85.765,0.66485641]
[1773108067866,11.18978332,85.79,85.765,0.66485641]
[1773108068178,0.66241304,85.789,85.765,0.66485641]
[1773108068348,0.66241304,85.789,85.764,11.65990392]
[1773108068765,11.18978332,85.79,85.765,0.66485641]
[1773108069944,0.66241304,85.789,85.766,11.65963202]
[1773108070854,3.69383402,85.829,85.766,11.65963202]
[1773108070855,11.18978332,85.81,85.771,0.66485641]
[1773108071074,0.66241304,85.809,85.771,0.66485641]
[1773108071577,0.66241304,85.799,85.771,0.66485641]
[1773108071753,0.66241304,85.791,85.771,0.66485641]
[1773108072566,0.66241304,85.791,85.772,11.65881639]
[1773108073271,12.31865857,85.791,85.767,11.65936706]
[1773108073470,11.65624553,85.791,85.765,0.66485641]
[1773108073676,0.66241304,85.779,85.755,62.8]
[1773108074364,0.66241304,85.779,85.752,12.32639054]
[1773108075369,0.66241304,85.777,85.749,0.66485641]
[1773108076078,0.66241304,85.777,85.751,0.66485641]
[1773108076452,11.18978332,85.79,85.761,0.66485641]
[1773108077776,11.18978332,85.79,85.762,11.66017583]
[1773108077951,11.18978332,85.79,85.763,0.66485641]
[1773108078786,22.84619767,85.79,85.763,0.66485641]
[1773108080158,0.66241304,85.789,85.763,0.66485641]
[1773108080363,0.66241304,85.789,85.751,0.66485641]
[1773108081874,0.66241304,85.787,85.752,0.66485641]
[1773108082874,11.65664195,85.788,85.761,0.66485641]
[1773108083257,11.18978332,85.79,85.761,0.66485641]
[1773108083476,22.84622089,85.79,85.761,0.66485641]
[1773108083772,23.50863393,85.79,85.761,0.66485641]
[1773108084154,0.66241304,85.789,85.763,0.66485641]
[1773108086476,11.65664195,85.788,85.765,0.66485641]
[1773108086674,12.31905499,85.788,85.765,0.66485641]
[1773108086974,0.66241304,85.808,85.771,0.66485641]
[1773108087279,0.66241304,85.806,85.771,0.66485641]
[1773108089081,11.65433249,85.805,85.773,0.66485641]
[1773108089270,12.31674553,85.805,85.773,0.66485641]
[1773108089470,0.66241304,85.804,85.773,0.66485641]
[1773108091781,12.31701719,85.803,85.775,0.66485641]
[1773108091963,0.66241304,85.802,85.775,0.66485641]
[1773108092788,4.1759528,85.8,85.775,0.66485641]
[1773108093764,0.62459807,85.807,85.777,0.60529696]
[1773108093967,0.62459807,85.829,85.784,0.60529696]
[1773108094178,0.62459807,85.809,85.777,0.60529696]
[1773108094563,0.62459807,85.799,85.776,11.65827271]
[1773108095680,0.62459807,85.789,85.762,0.60529696]
[1773108098660,0.62459807,85.789,85.764,0.60529696]
[1773108099176,0.62459807,85.802,85.771,0.60529696]
[1773108099688,4.1759528,85.81,85.763,41.41543652]
[1773108099689,0.62459807,85.799,85.763,41.41543652]
[1773108100075,0.62459807,85.799,85.764,0.60529696]
[1773108100779,0.62459807,85.799,85.742,58.31436195]
[1773108100780,0.62459807,85.799,85.771,0.60529696]
[1773108101686,0.62459807,85.799,85.765,40.80918789]
[1773108101687,0.62459807,85.819,85.781,0.60529696]
[1773108102072,0.62459807,85.809,85.781,0.60529696]
[1773108102476,11.64985204,85.838,85.801,0.60529696]
[1773108102680,11.64985204,85.838,85.811,0.60529696]
[1773108102988,0.62459807,85.843,85.811,0.60529696]
[1773108104887,0.62459807,85.839,85.801,0.60529696]
[1773108105488,41.39908022,85.838,85.801,0.60529696]
[1773108105873,0.62459807,85.837,85.801,0.60529696]
[1773108107290,11.64985204,85.838,85.811,0.60529696]
[1773108107481,11.64903778,85.844,85.813,0.60529696]
[1773108107679,0.62459807,85.843,85.813,0.60529696]
[1773108107987,0.62459807,85.839,85.813,0.60529696]
[1773108108189,0.62459807,85.839,85.8,11.17633092]
[1773108108574,0.62459807,85.839,85.801,0.60529696]
[1773108110193,11.64985204,85.838,85.803,0.60147614]
[1773108110398,0.65118338,85.837,85.803,0.60147614]
[1773108111882,0.65118338,85.837,85.8,11.17633092]
[1773108111883,11.65012349,85.836,85.805,0.60147614]
[1773108112399,11.65012349,85.836,85.811,0.60147614]
[1773108114700,11.64963423,85.84,85.813,0.60147614]
[1773108115780,11.64963423,85.84,85.783,58.28622421]
[1773108115781,0.65118338,85.856,85.821,0.60147614]
[1773108115985,0.65118338,85.849,85.821,0.60147614]
[1773108117693,0.65118338,85.855,85.823,0.60147614]
[1773108119783,0.65118338,85.855,85.814,29.13277553]
[1773108119784,11.64713829,85.858,85.833,0.60147614]
[1773108120195,0.65118338,85.861,85.833,0.60147614]
[1773108120896,22.82319791,85.86,85.833,0.60147614]
[1773108121103,0.65118338,85.859,85.821,0.60147614]
[1773108121787,0.65118338,85.847,85.824,0.60147614]
[1773108122497,0.65118338,85.839,85.809,0.60147614]
[1773108122680,0.65118338,85.839,85.811,0.60147614]
[1773108123286,0.65118338,85.839,85.81,11.65365342]
[1773108123502,0.65118338,85.839,85.811,0.63735302]
[1773108124584,0.59476116,85.849,85.813,0.63735302]
[1773108126106,4.17155319,85.84,85.813,0.63735302]
[1773108126305,0.59476116,85.839,85.813,0.63735302]
[1773108126802,0.59476116,85.837,85.808,11.6538871]
[1773108127009,0.59476116,85.837,85.807,0.63735302]
[1773108127202,0.59476116,85.837,85.808,11.65392504]
[1773108127506,0.59476116,85.837,85.808,12.29127806]
[1773108128701,0.59476116,85.835,85.809,0.63735302]
[1773108129104,0.59476116,85.829,85.801,0.63735302]
[1773108130995,12.24597055,85.828,85.803,0.63735302]
[1773108131307,0.59476116,85.827,85.803,0.63735302]
[1773108133809,0.59476116,85.827,85.804,11.65446832]
[1773108133992,0.59476116,85.827,85.805,0.63735302]
[1773108134908,11.6514809,85.826,85.805,0.63735302]
[1773108135094,0.59476116,85.825,85.799,0.63735302]
[1773108135612,0.59476116,85.825,85.799,12.29237277]
[1773108135814,0.59476116,85.825,85.8,0.63735302]
[1773108136402,0.59476116,85.823,85.794,11.65573743]
[1773108136604,0.59476116,85.819,85.794,11.65573743]
[1773108137208,0.59476116,85.819,85.793,0.63735302]
[1773108137415,0.59476116,85.809,85.78,0.63735302]
[1773108137612,0.59476116,85.809,85.781,0.63735302]
[1773108138205,0.59476116,85.809,85.761,63.43735302]
[1773108138409,40.78113347,85.824,85.762,0.63735302]
[1773108138410,11.65650607,85.789,85.762,0.63735302]
[1773108138918,0.59476116,85.788,85.762,0.63735302]
[1773108139937,0.59476116,85.786,85.762,0.63735302]
[1773108140612,4.17155319,85.78,85.762,0.63735302]
[1773108140821,0.59476116,85.786,85.764,0.63735302]
[1773108141503,11.65677783,85.787,85.764,0.63735302]
[1773108141995,11.65677783,85.787,85.765,11.65976797]
[1773108142196,11.65677783,85.787,85.766,0.63735302]
[1773108142603,12.25153899,85.787,85.766,0.63735302]
[1773108143615,11.6570496,85.785,85.766,0.63735302]
[1773108143812,4.17155319,85.8,85.768,0.63735302]
[1773108144014,11.65433713,85.805,85.771,0.63735302]
[1773108144199,0.59476116,85.819,85.781,0.63735302]
[1773108144394,0.59476116,85.819,85.791,0.63735302]
[1773108144606,12.24719243,85.819,85.791,0.63735302]
[1773108145402,0.59476116,85.818,85.791,0.63735302]
[1773108147620,0.59476116,85.818,85.792,11.65609847]
[1773108147812,0.59476116,85.818,85.793,0.63735302]
[1773108148601,0.59476116,85.828,85.793,0.63735302]
[1773108148926,0.59476116,85.828,85.801,0.63735302]
[1773108149815,0.59476116,85.826,85.798,6.78709231]
[1773108150018,11.65134514,85.827,85.77,4.17155319]
[1773108150019,0.59476116,85.809,85.77,4.17155319]
[1773108150199,0.59476116,85.809,85.766,11.65963202]
[1773108150200,4.17155319,85.79,85.766,11.65963202]
[1773108150403,0.59476116,85.789,85.766,11.65963202]
[1773108151622,0.59476116,85.789,85.76,4.17155319]
[1773108152016,0.59476116,85.789,85.761,0.63735302]
[1773108154229,0.59476116,85.789,85.763,0.62610639]
[1773108155719,0.60153141,85.796,85.763,0.62610639]
[1773108157313,0.60153141,85.796,85.764,11.65990392]
[1773108157519,0.60153141,85.796,85.765,0.62610639]
[1773108160427,0.60153141,85.796,85.766,11.65963202]
[1773108160635,0.60153141,85.796,85.771,0.62610639]
[1773108160832,0.60153141,85.819,85.781,0.62610639]
[1773108161020,0.60153141,85.815,85.781,0.62610639]
[1773108163233,0.60153141,85.809,85.783,0.62610639]
[1773108163439,0.60153141,85.799,85.778,11.65791349]
[1773108164421,0.60153141,85.799,85.767,62.8]
[1773108164738,0.60153141,85.789,85.767,62.8]
[1773108166024,0.60153141,85.796,85.771,0.62610639]
[1773108166213,0.60153141,85.796,85.77,11.65908825]
[1773108166214,0.60153141,85.795,85.77,11.65908825]
[1773108169541,0.60153141,85.795,85.769,0.62610639]
[1773108171528,0.60153141,85.795,85.771,0.62610639]
[1773108171838,29.13140638,85.819,85.771,0.62610639]
[1773108171839,0.60153141,85.799,85.771,0.62610639]
[1773108172034,0.60153141,85.799,85.77,11.65908825]
[1773108173229,4.17628306,85.79,85.77,11.65908825]
[1773108173435,0.60153141,85.789,85.77,11.65908825]
[1773108174040,0.60153141,85.789,85.765,11.65976797]
[1773108178747,0.60153141,85.789,85.765,0.57101865]
[1773108180449,0.60153141,85.789,85.762,0.57101865]
[1773108180842,0.56547674,85.779,85.745,0.57101865]
[1773108181140,0.56547674,85.779,85.741,0.57101865]
[1773108181345,0.56547674,85.769,85.735,0.57101865]
[1773108181529,4.17628306,85.77,85.735,0.57101865]
[1773108181530,0.56547674,85.759,85.735,0.57101865]
[1773108182934,0.56547674,85.759,85.736,11.66371185]
[1773108184961,0.56150272,85.757,85.737,0.57925182]
[1773108186354,0.56150272,85.765,85.741,0.57925182]
[1773108187255,0.56150272,85.778,85.743,0.57925182]
[1773108187547,0.56150272,85.778,85.745,0.57925182]
[1773108187749,0.56150272,85.777,85.745,0.57925182]
[1773108187949,0.56150272,85.769,85.742,11.66289566]
[1773108189247,11.65936013,85.768,85.742,11.66289566]
[1773108189437,0.56150272,85.767,85.742,11.66289566]
[1773108189851,0.56150272,85.767,85.742,12.24214748]
[1773108190155,0.56150272,85.767,85.743,0.57925182]
[1773108190656,0.56150272,85.765,85.738,0.57925182]
[1773108192557,0.56150272,85.759,85.731,11.66439211]
[1773108194158,0.56150272,85.759,85.732,0.57925182]
[1773108197561,0.56150272,85.759,85.733,11.66412]
[1773108199863,0.56150272,85.739,85.73,0.2]
[1773108200869,0.56150272,85.739,85.72,0.2]
[1773108201348,40.81251893,85.758,85.691,11.66981392]
[1773108201349,0.56150272,85.729,85.691,11.66981392]
[1773108201556,0.53680968,85.709,85.68,0.2]
[1773108201969,0.53680968,85.707,85.682,11.67102395]
[1773108202863,0.53680968,85.707,85.686,11.67051298]
[1773108203766,0.53680968,85.707,85.691,11.66983697]
[1773108204165,0.53680968,85.707,85.68,0.2]
[1773108204777,4.17628306,85.71,85.685,0.59341478]
[1773108205159,4.17628306,85.71,85.688,11.67015616]
[1773108206278,4.17628306,85.71,85.692,0.59341478]
[1773108206481,4.17628306,85.7,85.686,0.59341478]
[1773108207071,4.22162871,85.71,85.686,0.59341478]
[1773108207897,11.66738615,85.709,85.686,0.59341478]
[1773108208711,4.17628306,85.7,85.686,0.59341478]
[1773108208891,0.56150272,85.699,85.67,0.2]
[1773108209089,0.56150272,85.679,85.65,11.87529363]
[1773108209285,0.56150272,85.669,85.65,0.2]
[1773108209904,12.23437731,85.669,85.65,0.2]
[1773108210106,0.56150272,85.659,85.63,0.2]
[1773108210699,4.17628306,85.65,85.631,11.6780138]
[1773108211088,4.17628306,85.65,85.63,0.2]
[1773108212508,4.17628306,85.65,85.63,0.77925182]
[1773108212889,4.17628306,85.65,85.631,0.57925182]
[1773108213105,7.94144506,85.679,85.632,0.57925182]
[1773108213292,4.17628306,85.67,85.632,0.57925182]
[1773108213489,4.17628306,85.66,85.632,0.57925182]
[1773108214204,4.17628306,85.66,85.631,11.6780138]
[1773108214205,4.17628306,85.66,85.634,0.58298191]
[1773108215309,4.42293868,85.66,85.634,0.58298191]
[1773108215911,0.24767788,85.659,85.634,0.58298191]
[1773108216108,11.67277092,85.67,85.63,0.2]
[1773108216109,0.24767788,85.649,85.63,0.2]
[1773108216294,4.17628306,85.64,85.63,0.2]
[1773108220692,0.25262287,85.646,85.63,0.2]
[1773108221095,4.17628306,85.64,85.63,0.2]
[1773108221618,4.17628306,85.67,85.632,0.58298191]
[1773108222394,8.19503311,85.679,85.641,0.58298191]
[1773108222821,4.17628306,85.67,85.641,0.58298191]
[1773108223318,4.17628306,85.67,85.643,0.58298191]
[1773108223522,7.94144506,85.679,85.643,0.58298191]
[1773108223716,8.19690486,85.679,85.643,0.58298191]
[1773108224023,0.2554598,85.678,85.643,0.58298191]
[1773108224518,0.2554598,85.678,85.642,40.86779851]
[1773108224519,7.94144506,85.679,85.651,0.58298191]
[1773108225407,7.94144506,85.679,85.652,11.6751506]
[1773108225607,7.94144506,85.679,85.653,0.58298191]
[1773108226923,7.94144506,85.679,85.655,0.58298191]
[1773108229324,0.26082434,85.678,85.656,11.67460539]
[1773108229508,4.45030612,85.67,85.644,0.57470837]